fUSD/lending_fUSD_20251117
["ID","MTS","AMOUNT","RATE_DAILY","PERIOD"]
[394200795,1763374172041,10000.0,0.00022,30]
[394200800,1763374188843,6799.8,0.00022,30]
[394200811,1763374232312,-154.98614576,0.00025338,120]
[394200812,1763374232321,-185.79714055,0.00025338,49]
[394200813,1763374232331,-79.41324289,0.00025437,2]
[394200814,1763374232345,-220.58675711,0.00025437,2]
[394200815,1763374232355,-3431.0,0.00025438,2]
[394200816,1763374232364,-1191.0,0.00025438,2]
[394200817,1763374232373,-907.0,0.00025438,2]
[394200818,1763374232383,-705.0,0.00025438,2]
[394200819,1763374232393,-254.0,0.000277,5]
[394200820,1763374232402,-3431.0,0.00028438,2]
[394200821,1763374232411,-162.41324289,0.00028438,2]
[394200822,1763374232444,-1026.2,0.00028438,2]
[394200823,1763374232456,-2.38675711,0.00028438,2]
[394200824,1763374232465,-293.61324286,0.00028438,2]
[394200825,1763374232506,-613.38675714,0.00028438,2]
[394200826,1763374232515,-454.539,0.00028438,2]
[394200827,1763374232525,-210.47,0.00029,14]
[394200828,1763374232535,-500.0,0.00029523,11]
[394200829,1763374232545,-500.0,0.00029523,11]
[394200830,1763374232555,-500.0,0.00029523,11]
[394200831,1763374232564,-40.20669176,0.00029523,11]
[394200832,1763374232619,-459.79330824,0.00029523,11]
[394200833,1763374232629,-500.0,0.00029523,11]
[394200834,1763374232639,-500.0,0.00029523,11]
[394200835,1763374232648,-500.0,0.00029523,11]
[394200836,1763374232658,-500.0,0.00029523,11]
[394200837,1763374232669,-151.0,0.00030261,2]
[394200838,1763374232678,-262.55879027,0.00031438,2]
[394200839,1763374232690,-999.0,0.00031438,2]
[394200840,1763374232785,-287.32390379,0.00031438,2]
[394200841,1763374232796,-685.08971641,0.00031438,2]
[394200842,1763374232809,-640.9953295,0.00031438,2]
[394200849,1763374238248,-287.848,0.00030809,2]
[394200850,1763374238259,-556.03226003,0.00031438,2]
[394200851,1763374238269,-1191.0,0.00031438,2]
[394200852,1763374238279,-594.69998829,0.00031438,2]
[394200853,1763374238440,-312.30001171,0.00031438,2]
[394200854,1763374238450,-183.79338095,0.00032,120]
[394200855,1763374238460,-20.27760734,0.00032167,3]
[394200856,1763374238538,-130.72239266,0.00032167,3]
[394200857,1763374238548,-500.0,0.00032575,2]
[394200858,1763374238558,-185.79714055,0.00032619,67]
[394200859,1763374238569,-632.58,0.00032849,2]
[394200860,1763374238580,-183.79338095,0.00033,120]
[394200861,1763374238590,-1955.0,0.000332,2]
[394200862,1763374238600,-631.41,0.000333,30]
[394200863,1763374238609,-512.2653465,0.00033471,2]
[394200864,1763374238619,-1954.5333596,0.000338,2]
[394200865,1763374238629,-183.79338095,0.000339,120]
[394200866,1763374238639,-172.90743223,0.00033959,37]
[394200867,1763374238648,-637.106,0.00033959,37]
[394200868,1763374238658,-1174.13730954,0.00034054,2]
[394200870,1763374238667,-151.0,0.00034074,4]
[394200872,1763374238677,-500.0,0.00034284,3]
[394200874,1763374238687,-397.81642101,0.00034337,2]
[394200876,1763374238697,-10273.72464401,0.00034338,2]
[394200879,1763374238710,-965.39130196,0.00034338,2]
[394201031,1763374240314,-915.6857705,0.00025438,2]
[394201036,1763374240345,-5573.3142295,0.00025438,2]
[394201038,1763374240354,-6489.0,0.00028438,2]
[394201040,1763374240364,-6489.0,0.00031438,2]
[394201042,1763374240373,-5202.48408086,0.00034338,2]
[394201051,1763374240451,-5795.45543174,0.00034338,2]
[394201063,1763374240557,-306.069,0.00034338,2]
[394201368,1763374243549,-258.42418598,0.00034338,2]
[394201371,1763374243561,-1404.83700312,0.00034338,2]
[394201381,1763374243656,-1963.74237781,0.00034338,2]
[394201437,1763374244185,-15384.07972,0.00034338,2]
[394201443,1763374244225,-1154.92081612,0.00034338,2]
[394201445,1763374244239,-637.30701203,0.00034338,2]
[394201447,1763374244249,-1035.94218875,0.00034338,2]
[394201449,1763374244261,-1014.09508778,0.00034338,2]
[394201451,1763374244272,-502.99139351,0.00034338,2]
[394201500,1763374246394,-350.03575633,0.00034338,2]
[394201501,1763374246403,-277.35679052,0.00034436,7]
[394201502,1763374246413,-74.19533418,0.00034436,7]
[394201503,1763374246467,-213.42365759,0.00034436,7]
[394201504,1763374246477,-211.10145719,0.00034436,7]
[394201505,1763374246488,-87.15943727,0.00034436,7]
[394201506,1763374246498,-309.29654756,0.00034436,7]
[394201507,1763374246509,-202.70056669,0.00034436,7]
[394201508,1763374246519,-600.0,0.00034436,7]
[394201509,1763374246528,-600.0,0.00034436,7]
[394201510,1763374246537,-600.0,0.00034436,7]
[394201511,1763374246546,-600.0,0.00034436,7]
[394201512,1763374246556,-600.0,0.00034436,7]
[394201513,1763374246565,-500.0,0.00034436,7]
[394201514,1763374246575,-500.0,0.00034437,2]
[394201515,1763374246584,-2178.16763172,0.00034438,2]
[394201578,1763375116583,-455.76828539,0.00018,2]
[394201579,1763375118058,-286.91391834,0.00018,2]
[394201580,1763375121871,-369.44081654,0.00018,2]
[394201581,1763375124617,-7538.64227787,0.00018,2]
[394201582,1763375124743,-10000.01,0.00018,2]
[394201583,1763375124983,-163.68527077,0.00018,2]
[394201584,1763375125511,-10000.01,0.00018,2]
[394201585,1763375125578,-10000.01,0.00018,2]
[394201586,1763375125663,-10000.01,0.00018,2]
[394201587,1763375125715,-10000.01,0.00018,2]
[394201588,1763375127633,-10000.01,0.00018,2]
[394201589,1763375127783,-10000.01,0.00018,2]
[394201590,1763375128151,-160.26215429,0.00018,2]
[394201591,1763375130981,-10000.01,0.00018,2]
[394201592,1763375131031,-230.91790741,0.00018,2]
[394201593,1763375131213,-10000.01,0.00018,2]
[394201594,1763375131544,-10000.01,0.00018,2]
[394201595,1763375132847,-244.83522882,0.00018,2]
[394201596,1763375135299,-10000.01,0.00018,2]
[394201597,1763375135313,-10000.01,0.00018,2]
[394201598,1763375137490,-10000.01,0.00018,2]
[394201599,1763375137569,-10000.01,0.00018,2]
[394201600,1763375137584,-10000.01,0.00018,2]
[394201601,1763375137618,-194.44334265,0.00018,2]
[394201602,1763375140055,-10000.01,0.00018,2]
[394201603,1763375140987,-155.39013836,0.00018,2]
[394201604,1763375143043,-10000.01,0.00018,2]
[394201605,1763375143134,-10000.01,0.00018,2]
[394201606,1763375146381,-10000.01,0.00018,2]
[394201607,1763375149338,-10000.01,0.00018,2]
[394201608,1763375152289,-10000.01,0.00018,2]
[394201609,1763375155288,-10000.01,0.00018,2]
[394201610,1763375158525,-10000.01,0.00018,2]
[394201611,1763375161751,-300.0,0.00017999,2]
[394201612,1763375161923,-9400.01,0.00018,2]
[394201613,1763375167801,-10000.01,0.00018,2]
[394201614,1763375170943,-10000.01,0.00018,2]
[394201615,1763375176910,-10000.01,0.00018,2]
[394201616,1763375182280,-10000.01,0.00018,2]
[394201617,1763375182324,-10000.01,0.00018,2]
[394201618,1763375182384,-10000.01,0.00018,2]
[394201619,1763375182446,-10000.01,0.00018,2]
[394201620,1763375182483,-10000.01,0.00018,2]
[394201621,1763375182529,-10000.01,0.00018,2]
[394201622,1763375182587,-10000.01,0.00018,2]
[394201623,1763375182632,-10000.01,0.00018,2]
[394201624,1763375182647,-10000.01,0.00018,2]
[394201625,1763375183103,-10000.01,0.00018,2]
[394201626,1763375189938,-10000.01,0.00018,2]
[394201627,1763375189979,-10000.01,0.00018,2]
[394201628,1763375190015,-10000.01,0.00018,2]
[394201629,1763375190042,-10000.01,0.00018,2]
[394201630,1763375190147,-10000.01,0.00018,2]
[394201631,1763375190279,-10000.01,0.00018,2]
[394201632,1763375190422,-10000.01,0.00018,2]
[394201633,1763375190521,-10000.01,0.00018,2]
[394201634,1763375192406,-10000.01,0.00018,2]
[394201635,1763375192527,-10000.01,0.00018,2]
[394201636,1763375195761,-308.86554004,0.00017999,2]
[394201637,1763375195794,-500.0,0.00017999,2]
[394201638,1763375195826,-500.0,0.00017999,2]
[394201639,1763375195859,-500.0,0.00017999,2]
[394201640,1763375195891,-215.91508237,0.00017999,2]
[394201641,1763375195923,-500.0,0.00017999,2]
[394201642,1763375195958,-500.0,0.00017999,2]
[394201643,1763375195988,-500.0,0.00017999,2]
[394201644,1763375196019,-500.0,0.00017999,2]
[394201645,1763375196332,-1950.44875518,0.00018,2]
[394201646,1763375196455,-10000.01,0.00018,2]
[394201647,1763375196531,-10000.01,0.00018,2]
[394201648,1763375196577,-10000.01,0.00018,2]
[394201649,1763375196638,-10000.01,0.00018,2]
[394201650,1763375196656,-10000.01,0.00018,2]
[394201651,1763375198683,-10000.01,0.00018,2]
[394201652,1763375198827,-10000.01,0.00018,2]
[394201653,1763375198991,-10000.01,0.00018,2]
[394201654,1763375204846,-10000.01,0.00018,2]
[394201655,1763375211089,-10000.01,0.00018,2]
[394201658,1763375214419,5000.00853931,0.000162,5]
[394201661,1763375318283,5000.00146069,0.00015,3]
[394201662,1763375318307,10000.01,0.00015,3]
[394201663,1763375318330,10000.01,0.00015,3]
[394201664,1763375318353,10000.01,0.00015,3]
[394201665,1763375318377,10000.01,0.00015,3]
[394201666,1763375318399,10000.01,0.00015,3]
[394201667,1763375318421,10000.01,0.00015,3]
[394201668,1763375318444,10000.01,0.00015,3]
[394201669,1763375318469,10000.01,0.00015,3]
[394201670,1763375318493,10000.01,0.00015,3]
[394201671,1763375318520,180000.0,0.00015,3]
[394201672,1763375318549,21252.04533072,0.00015,3]
[394201673,1763375350815,-300.0,0.00017999,2]
[394201740,1763375401665,1200.0,0.00017999,2]
[394201741,1763375402594,300.0,0.00017999,2]
[394201753,1763375431541,-280.24169035,0.00018,2]
[394201754,1763375431551,-263.63672817,0.00018,2]
[394201755,1763375431649,-520.1919484,0.00018,2]
[394201756,1763375431718,-141414.33040779,0.00018,2]
[394201757,1763375431730,-999.0,0.00018,2]
[394201758,1763375431741,-2935.82422421,0.00018,2]
[394201759,1763375431752,-2064.17935148,0.00018,2]
[394201760,1763375431787,-21999.81484837,0.00018,2]
[394201761,1763375431798,-6268.16078329,0.00018,2]
[394201762,1763375431809,-262.00418248,0.00018,2]
[394201764,1763375431820,-1765.86379233,0.00018,2]
[394201767,1763375437471,-1433367.05967716,0.00018,2]
[394201768,1763375437481,-21982.4602231,0.00018,2]
[394201769,1763375437491,-250.0,0.000181,2]
[394201770,1763375437500,-300.0,0.00019639,2]
[394201771,1763375437510,-1680.0,0.00019735,2]
[394201772,1763375437519,-4904.94987,0.0002028,2]
[394201773,1763375437528,-1094.44225,0.00020789,2]
[394201774,1763375437538,-720.0,0.00021639,2]
[394201775,1763375437548,-3357.79911662,0.000241,2]
[394201776,1763375437558,-250.0,0.000242,3]
[394201777,1763375437568,-287427.47985431,0.000248,3]
[394201778,1763375437606,-499.21428765,0.000248,3]
[394201779,1763375437679,-6782.29682743,0.000248,3]
[394201968,1763375439673,-8288.49,0.000248,3]
[394201976,1763375439755,-4488.55055813,0.000248,3]
[394201978,1763375439769,-6239.78850516,0.000248,3]
[394202005,1763375440084,-3050.0,0.000248,3]
[394202032,1763375440456,-938.69506257,0.000248,3]
[394202251,1763375443153,-6693.11118094,0.000248,3]
[394202253,1763375445923,-2297.92363891,0.000248,3]
[394202260,1763375505853,5333.7008,0.000179,2]
[394202261,1763375511534,500.0,0.00017999,2]
[394202262,1763375516392,337.97311388,0.00017999,2]
[394202263,1763375541829,500.0,0.00017999,2]
[394202264,1763375546337,500.0,0.00017999,2]
[394202266,1763375612635,250.0,0.000178,2]
[394202278,1763375726887,250.05,0.000175,2]
[394202280,1763375772678,228.28608612,0.00013699,2]
[394202281,1763375772704,58.87391388,0.00013699,2]
[394202282,1763375919064,1640.35,0.00013,2]
[394202291,1763376261261,-250.0,0.000181,3]
[394202316,1763376631759,-195.0,0.00018783,2]
[394202317,1763376631769,-210.87239285,0.00018783,2]
[394202318,1763376631778,-195.0,0.00018966,2]
[394202319,1763376631788,-1200.0,0.00019088,2]
[394202320,1763376631797,-384.2649282,0.00019089,2]
[394202321,1763376631842,-2186.3935107,0.00019089,2]
[394202322,1763376631852,-273.6105625,0.00019089,2]
[394202323,1763376631861,-287.16,0.00020187,2]
[394202324,1763376631871,-300.0,0.00020344,2]
[394202325,1763376631880,-300.0,0.00020344,2]
[394202326,1763376631889,-195.0,0.00020345,2]
[394202327,1763376631898,-1680.0,0.00020905,2]
[394202328,1763376631908,-490.8497594,0.00021111,2]
[394202329,1763376631959,-973.29068355,0.00021111,2]
[394202330,1763376631975,-1486.47249204,0.00021111,2]
[394202331,1763376631986,-1109.02479168,0.00021111,2]
[394202332,1763376631996,-273.6105625,0.00021624,2]
[394202333,1763376632006,-2570.6584389,0.0002163,2]
[394202334,1763376632018,-250.0,0.00022,3]
[394202335,1763376632028,-300.0,0.00022144,2]
[394202336,1763376632037,-720.0,0.00022895,2]
[394202337,1763376632047,-500.0,0.00023589,2]
[394202339,1763376632057,-222.2113773,0.00023741,2]
[394202341,1763376632066,-1270.16859966,0.0002393,2]
[394202343,1763376632075,-500.049329,0.00024,2]
[394202345,1763376632084,-195.3485,0.000241,2]
[394202347,1763376632094,-273.6105625,0.00024158,2]
[394202349,1763376632103,-2570.6584389,0.00024171,2]
[394202351,1763376632112,-250.0,0.000244,3]
[394202389,1763376632419,-7431.693,0.000247,2]
[394202391,1763376632429,-5038.67563236,0.00024755,2]
[394202393,1763376632439,-250.0,0.0002478,2]
[394202395,1763376632448,-5795.4554,0.0002479,2]
[394202397,1763376632457,-200.0,0.000248,2]
[394202398,1763376632467,-3377.79,0.00024844,2]
[394202399,1763376632476,-250.0,0.000249,2]
[394202400,1763376632486,-200.0,0.00025048,2]
[394202401,1763376632496,-200.0,0.00025298,2]
[394202402,1763376632506,-14739.59230336,0.0002567,2]
[394202403,1763376632515,-151.0,0.0002582,2]
[394202404,1763376632525,-151.0,0.0002582,2]
[394202405,1763376632534,-250.0,0.00026,3]
[394202406,1763376632544,-195.3485,0.000261,2]
[394202407,1763376632554,-670.662,0.00026323,2]
[394202408,1763376632564,-6489.0,0.00026323,2]
[394202409,1763376632574,-250.0,0.000265,2]
[394202410,1763376632583,-287.16,0.00026676,2]
[394202411,1763376632593,-273.6105625,0.00026693,2]
[394202412,1763376632602,-2570.6584389,0.00026711,2]
[394202413,1763376632612,-250.0,0.00027,2]
[394202414,1763376632621,-500.0,0.00027397,2]
[394202415,1763376632630,-500.0,0.00028,2]
[394202416,1763376632639,-195.3485,0.000281,2]
[394202417,1763376632649,-168.0,0.00028682,2]
[394202418,1763376632658,-150.0,0.000289,14]
[394202419,1763376632668,-150.0,0.0002898,2]
[394202420,1763376632677,-999.0,0.00029069,3]
[394202421,1763376632686,-1175.27,0.0002911,120]
[394202422,1763376632696,-2398.528,0.00029323,2]
[394202423,1763376632706,-250.0,0.0003,5]
[394202424,1763376632715,-211.15,0.00030076,14]
[394202425,1763376632725,-500.0,0.00030076,11]
[394202426,1763376632735,-500.0,0.00030076,11]
[394202427,1763376632745,-500.0,0.00030076,11]
[394202428,1763376632754,-500.0,0.00030076,11]
[394202429,1763376632764,-500.0,0.00030076,11]
[394202430,1763376632774,-500.0,0.00030076,11]
[394202431,1763376632783,-500.0,0.00030076,11]
[394202432,1763376632792,-500.0,0.00030076,11]
[394202433,1763376632801,-195.3485,0.000301,2]
[394202434,1763376632811,-574.07871973,0.00030136,2]
[394202435,1763376632820,-20721.38,0.00030186,2]
[394202436,1763376632829,-167.02,0.00030731,2]
[394202437,1763376632839,-250.0,0.00030979,2]
[394202438,1763376632849,-250.0,0.00030979,2]
[394202439,1763376632858,-310.93344637,0.00030979,2]
[394202440,1763376632867,-1000.0,0.00030979,2]
[394202441,1763376632876,-1000.0,0.00030979,2]
[394202442,1763376632885,-1000.0,0.00030979,2]
[394202443,1763376632894,-1000.0,0.00030979,2]
[394202444,1763376632904,-277.35679052,0.00030979,2]
[394202445,1763376632913,-1000.0,0.00030979,2]
[394202446,1763376632922,-1000.0,0.00030979,2]
[394202447,1763376632932,-1000.0,0.00030979,2]
[394202448,1763376632941,-1000.0,0.00030979,2]
[394202449,1763376632951,-1000.0,0.00030979,2]
[394202450,1763376632961,-250.0,0.00031,5]
[394202451,1763376632975,-250.0,0.00031,5]
[394202452,1763376632984,-166.66,0.00031186,30]
[394202453,1763376632993,-1852.42,0.0003177,2]
[394202454,1763376633003,-166.66,0.00031843,30]
[394202455,1763376633013,-300.0,0.00031875,2]
[394202456,1763376633023,-195.3485,0.000321,2]
[394202457,1763376633032,-167.02,0.00032101,2]
[394202458,1763376633042,-166.66,0.00032499,30]
[394202459,1763376633051,-166.67,0.00032662,2]
[394202460,1763376633060,-1000.0,0.00032688,2]
[394202461,1763376633070,-600.0,0.00032877,2]
[394202462,1763376633080,-185.36,0.00032968,2]
[394202463,1763376633089,-166.66,0.00033156,30]
[394202464,1763376633098,-681.96,0.00033158,30]
[394202465,1763376633107,-287.16,0.00033165,2]
[394202466,1763376633117,-200.0,0.00033223,2]
[394202467,1763376633126,-378.84,0.000333,30]
[394202468,1763376633135,-600.0,0.00033425,2]
[394202469,1763376633144,-166.66,0.00033812,30]
[394202470,1763376633153,-509.685,0.00033968,37]
[394202471,1763376633162,-600.0,0.00033973,2]
[394202472,1763376633171,-195.3485,0.000341,2]
[394202473,1763376633181,-304.89,0.00034436,7]
[394202474,1763376633190,-324.55,0.00034438,2]
[394202475,1763376633199,-166.66,0.00034469,30]
[394202476,1763376633209,-600.0,0.00034521,2]
[394202477,1763376633219,-164.322017,0.00034564,14]
[394202478,1763376633228,-46609.90373465,0.00034567,2]
[394202479,1763376633237,-1455.1769285,0.00034682,2]
[394202506,1763376637781,-48.14700029,0.00034682,2]
[394202508,1763376637791,-152.0,0.00034915,3]
[394202510,1763376637800,-442.6137125,0.00035069,2]
[394202514,1763376637844,-157.3862875,0.00035069,2]
[394202515,1763376637853,-150.99,0.00035253,120]
[394202516,1763376637863,-391.62371268,0.00035296,2]
[394202517,1763376637874,-1134.22,0.00035296,2]
[394202713,1763376639799,-1181.315,0.00026323,2]
[394202715,1763376639809,-3474.15628732,0.00035296,2]
[394202717,1763376639818,-1000.0,0.00035357,2]
[394202719,1763376639827,-166.67,0.00035358,2]
[394202721,1763376639836,-166.66,0.0003536,2]
[394202723,1763376639845,-1503.32392871,0.0003542,2]
[394202725,1763376639854,-185.36,0.00035441,2]
[394202727,1763376639863,-610.0,0.00035492,2]
[394202729,1763376639873,-500.0,0.00035616,30]
[394202731,1763376639882,-1000.0,0.00035667,2]
[394202733,1763376639891,-5948.0,0.00035767,5]
[394202735,1763376639900,-500.0,0.00035806,2]
[394202737,1763376639909,-250.0,0.00035832,2]
[394202739,1763376639919,-500.0,0.0003589,30]
[394202741,1763376639928,-151.0,0.00035899,5]
[394202743,1763376639937,-200.0,0.00036028,2]
[394202745,1763376639946,-500.0,0.0003608,2]
[394202747,1763376639955,-1503.32392871,0.00036158,2]
[394202749,1763376639965,-500.0,0.00036164,30]
[394202751,1763376639978,-500.0,0.00036354,2]
[394202753,1763376639986,-166.66,0.00036422,2]
[394202755,1763376639996,-500.0,0.00036438,30]
[394202757,1763376640005,-500.0,0.00036628,2]
[394202759,1763376640014,-500.0,0.00036712,30]
[394202792,1763376640295,-1000.0,0.00036775,2]
[394202796,1763376640391,-1503.32392871,0.00036896,2]
[394202798,1763376640400,-500.0,0.00036902,2]
[394202800,1763376640409,-500.0,0.00036986,30]
[394202802,1763376640418,-500.0,0.00037176,2]
[394202804,1763376640428,-181.6161309,0.000372,120]
[394202806,1763376640437,-181.61613088,0.000372,120]
[394202808,1763376640446,-181.61613088,0.000372,120]
[394202810,1763376640456,-181.61613088,0.000372,120]
[394202812,1763376640465,-162.01,0.00037247,2]
[394202814,1763376640474,-153.876992,0.0003725,31]
[394202816,1763376640484,-500.0,0.0003726,30]
[394202818,1763376640493,-200.9225493,0.0003745,2]
[394202820,1763376640502,-166.66,0.00037484,2]
[394202822,1763376640511,-500.0,0.00037534,30]
[394202823,1763376640520,-1503.32392871,0.00037634,2]
[394202825,1763376640529,-500.0,0.00037808,30]
[394202827,1763376640538,-151.0,0.00037833,6]
[394202829,1763376640547,-185.36,0.00037914,2]
[394202831,1763376640556,-488.0,0.00037999,7]
[394202833,1763376640565,-500.0,0.00037999,2]
[394202835,1763376640574,-500.0,0.00037999,2]
[394202837,1763376640583,-500.0,0.00037999,2]
[394202839,1763376640593,-50000.0,0.00038,38]
[394202841,1763376640602,-154.08,0.00038,30]
[394202843,1763376640611,-3357.79911662,0.00038013,2]
[394202845,1763376640620,-1203.2381,0.00038036,2]
[394202847,1763376640630,-166.67,0.00038053,2]
[394202849,1763376640639,-500.0,0.00038082,30]
[394202851,1763376640648,-58083.3187578,0.00038106,4]
[394202853,1763376640658,-164.322017,0.00038113,14]
[394202855,1763376640667,-58083.3187578,0.00038116,4]
[394202857,1763376640676,-151.0,0.00038116,31]
[394202859,1763376640686,-151.941783,0.00038116,31]
[394202861,1763376640695,-151.0,0.00038116,31]
[394202863,1763376640704,-151.0,0.00038116,31]
[394202865,1763376640713,-151.0,0.00038116,31]
[394202867,1763376640723,-157.608769,0.00038116,31]
[394202869,1763376640732,-153.588076,0.00038116,31]
[394202871,1763376640742,-151.841322,0.00038116,31]
[394202873,1763376640751,-151.0,0.00038116,30]
[394202875,1763376640760,-151.0,0.00038116,31]
[394202877,1763376640769,-239.929972,0.00038116,31]
[394202879,1763376640779,-151.0,0.00038116,31]
[394202881,1763376640788,-151.0,0.00038116,31]
[394202883,1763376640797,-151.0,0.00038116,31]
[394202885,1763376640806,-151.0,0.00038116,31]
[394202887,1763376640815,-151.0,0.00038116,31]
[394202889,1763376640824,-235.632362,0.00038116,31]
[394202891,1763376640833,-151.0,0.00038116,31]
[394202893,1763376640842,-151.0,0.00038116,31]
[394202895,1763376640851,-151.0,0.00038116,31]
[394202897,1763376640860,-269.222207,0.00038116,31]
[394202899,1763376640869,-151.0,0.00038116,31]
[394202901,1763376640878,-151.0,0.00038116,31]
[394202903,1763376640887,-151.0,0.00038116,31]
[394202905,1763376640896,-151.0,0.00038116,31]
[394202907,1763376640905,-151.0,0.00038116,31]
[394202909,1763376640914,-151.0,0.00038116,31]
[394202912,1763376640927,-281.008224,0.00038116,31]
[394202914,1763376640936,-151.0,0.00038116,31]
[394202916,1763376640945,-151.0,0.00038116,31]
[394202918,1763376640954,-151.0,0.00038116,31]
[394202920,1763376640965,-151.0,0.00038116,31]
[394202922,1763376640977,-151.0,0.00038116,31]
[394202924,1763376640987,-151.0,0.00038116,31]
[394202926,1763376640996,-202.164896,0.00038116,31]
[394202928,1763376641006,-151.0,0.00038116,31]
[394202930,1763376641016,-202.164896,0.00038116,31]
[394202932,1763376641025,-202.164896,0.00038116,31]
[394202934,1763376641034,-202.164896,0.00038116,31]
[394202936,1763376641044,-151.0,0.00038116,31]
[394202937,1763376641054,-151.0,0.00038116,31]
[394202940,1763376641063,-151.0,0.00038116,31]
[394202942,1763376641072,-151.0,0.00038116,31]
[394202944,1763376641081,-151.0,0.00038116,31]
[394202946,1763376641090,-151.0,0.00038116,31]
[394202948,1763376641100,-151.0,0.00038116,31]
[394202950,1763376641109,-151.0,0.00038116,31]
[394202952,1763376641118,-151.0,0.00038116,31]
[394202954,1763376641127,-151.0,0.00038116,31]
[394202956,1763376641136,-151.0,0.00038116,31]
[394202958,1763376641145,-151.0,0.00038116,31]
[394202960,1763376641155,-151.0,0.00038116,31]
[394202962,1763376641164,-151.0,0.00038116,31]
[394202964,1763376641173,-151.0,0.00038116,31]
[394202966,1763376641182,-151.0,0.00038116,31]
[394202968,1763376641191,-164.322017,0.00038123,14]
[394202970,1763376641201,-493708.209442,0.00038126,4]
[394202972,1763376641210,-528982.93910685,0.00038126,4]
[394203008,1763376641598,-5795.45543174,0.00038126,4]
[394203016,1763376641670,-559.97185337,0.00038126,4]
[394203019,1763376641681,-523.49738546,0.00038126,4]
[394203073,1763376643292,-373.1972374,0.00038126,4]
[394203074,1763376643303,-7645.36491947,0.00038126,4]
[394203086,1763376646168,-934.40077117,0.00038126,4]
[394203210,1763377832407,-399.83872,0.00021382,2]
[394203212,1763377832418,-527.15,0.00021482,2]
[394203214,1763377832428,-154.32,0.00022,2]
[394203217,1763377832437,-151.0,0.0002217,2]
[394203218,1763377832447,-479.1746172,0.00024141,2]
[394203220,1763377832456,-185.79714055,0.00024245,47]
[394203223,1763377832465,-353.0,0.00024344,2]
[394203225,1763377832475,-5000.0,0.00024345,2]
[394203226,1763377832484,-250.0,0.00024345,2]
[394203228,1763377832493,-644.52,0.00024345,2]
[394203230,1763377832502,-154.32,0.0002443,2]
[394203233,1763377832512,-160.76374209,0.00024644,2]
[394203235,1763377832522,-4187.72073453,0.00024644,2]
[394203237,1763377832532,-3473.38372715,0.00024644,2]
[394203239,1763377832541,-33182.0252,0.00024644,2]
[394203241,1763377832550,-1000.0,0.00024644,2]
[394203243,1763377832559,-4078.6325,0.00024644,2]
[394203245,1763377832568,-571.521,0.00024743,8]
[394203247,1763377832577,-500.0,0.00024743,2]
[394203249,1763377832586,-379.37,0.00024743,2]
[394203251,1763377832596,-500.0,0.00024743,2]
[394203253,1763377832605,-500.0,0.00024743,2]
[394203255,1763377832613,-500.0,0.00024743,2]
[394203257,1763377832623,-500.0,0.00024743,2]
[394203259,1763377832632,-155.329,0.00024743,8]
[394203261,1763377832641,-256.6003816,0.00024744,2]
[394203263,1763377832650,-171.63434338,0.00024773,2]
[394203265,1763377832659,-500.0,0.00024773,2]
[394203267,1763377832668,-649.70851277,0.00024773,2]
[394203269,1763377832678,-500.0,0.00024873,2]